[Event "IIFL Wealth 4th Mumbai Open"]
[Site "Mumbai"]
[Date "2019.01.05"]
[Round "7"]
[White "Sunil, Vaidya"]
[Black "Tanuj, Dayal"]
[Result "1-0"]
[ECO "A40"]
[WhiteElo "1663"]
[BlackElo "1803"]
[Annotator "NA"]
[PlyCount "81"]
[EventDate "2018.12.30"]
[EventType "swiss"]
[EventCountry "IND"]
[SourceTitle "playchess.com"]
[Source "ChessBase"]
[SourceQuality "1"]
[TimeControl "40/5400+30:1800+30"]

1. d4 {[%emt 0:00:07]} e6 {[%emt 0:00:00]} 2. Bf4 {[%emt 0:00:28]} Nf6 {[%emt 0:00:20]} 3. e3 {[%emt 0:00:12]} c5 {[%emt 0:00:27]} 4. Nd2 {[%emt 0:01:39]} d5 {[%emt 0:03:27]} 5. dxc5 {[%emt 0:04:19]} Bxc5 {[%emt 0:00:03]} 6. Nb3 {[%emt 0:00:20]} Be7 {[%emt 0:02:59]} 7. Nf3 {[%emt 0:00:56]} O-O {[%emt 0:00:40]} 8. Bd3 {[%emt 0:00:30]} Nc6 {[%emt 0:01:47]} 9. O-O {[%emt 0:01:39]} h6 {[%emt 0:02:30]} 10. c4 {[%emt 0:01:58]} Bd6 {[%emt 0:02:01]} 11. c5 {[%emt 0:01:05]} Bxf4 {[%emt 0:00:58]} 12. exf4 {[%emt 0:00:03]} Qc7 {[%emt 0:00:10]} 13. g3 {[%emt 0:00:12]} Nb4 {[%emt 0:08:45]} 14. a3 {[%emt 0:01:32]} Nxd3 {[%emt 0:02:10]} 15. Qxd3 {[%emt 0:00:17]} Bd7 {[%emt 0:00:49]} 16. Rac1 {[%emt 0:00:55]} Rac8 {[%emt 0:04:19]} 17. Ne5 {[%emt 0:03:55]} a6 {[%emt 0:06:12]} 18. Nd4 {[%emt 0:02:08]} Ne4 {[%emt 0:01:19]} 19. b4 {[%emt 0:00:29]} Ba4 {[%emt 0:13:05]} 20. Ng4 {[%emt 0:06:56]} Qe7 {[%emt 0:07:06]} 21. f3 {[%emt 0:10:33]} Nf6 {[%emt 0:00:34]} 22. Rfe1 {[%emt 0:01:18]} Nxg4 {[%emt 0:02:02]} 23. fxg4 {[%emt 0:00:30]} Qf6 {[%emt 0:04:30]} 24. Re5 {[%emt 0:04:05]} Rc7 {[%emt 0:04:06]} 25. Rce1 {[%emt 0:16:09]} Re8 {[%emt 0:09:45]} 26. g5 {[%emt 0:02:01]} hxg5 {[%emt 0:00:02]} 27. fxg5 {[%emt 0:00:21]} Qd8 {[%emt 0:00:23]} 28. Qe3 Rce7 {[%emt 0:05:01]} 29. Qf4 {[%emt 0:08:50]} g6 {[%emt 0:02:31]} 30. h4 {[%emt 0:00:40]} Bd7 {[%emt 0:03:07]} 31. Kg2 {[%emt 0:01:39]} Kh7 {[%emt 0:00:52]} 32. h5 {[%emt 0:01:14]} Rh8 {[%emt 0:05:05]} 33. hxg6+ {[%emt 0:06:25]} Kg8 {[%emt 0:00:47]} 34. Qf6 {[%emt 0:01:32]} fxg6 {[%emt 0:00:54]} 35. Nxe6 {[%emt 0:03:49]} Qe8 {[%emt 0:03:37]} 36. Nf4 {[%emt 0:03:21]} Rxe5 {[%emt 0:01:17]} 37. Rxe5 {[%emt 0:00:15]} Qf7 {[%emt 0:00:20]} 38. Re7 {[%emt 0:01:32]} Qxf6 {[%emt 0:00:36]} 39. gxf6 {[%emt 0:00:15]} Bf5 {[%emt 0:00:20]} 40. Re8+ {[%emt 0:00:00]} Kh7 {[%emt 0:00:00]} 41. f7 {[%emt 0:02:18]} 1-0

[Event "IIFL Wealth 4th Mumbai Open"]
[Site "Mumbai"]
[Date "2019.01.05"]
[Round "7"]
[White "Aditya, Ramanathan"]
[Black "Mokashi Rohit"]
[Result "1/2-1/2"]
[ECO "B01"]
[WhiteElo "1602"]
[BlackElo "1641"]
[Annotator "NA"]
[PlyCount "117"]
[EventDate "2018.12.30"]
[EventType "swiss"]
[EventCountry "IND"]
[SourceTitle "playchess.com"]
[Source "ChessBase"]
[SourceQuality "1"]
[TimeControl "40/5400+30:1800+30"]

1. e4 {[%emt 0:00:00]} d5 {[%emt 0:00:00]} 2. exd5 {[%emt 0:00:00]} Nf6 {[%emt 0:00:00]} 3. d4 {[%emt 0:00:00]} Bg4 {[%emt 0:00:08]} 4. Be2 {[%emt 0:00:15]} Bxe2 {[%emt 0:01:24]} 5. Nxe2 {[%emt 0:00:06]} Qxd5 {[%emt 0:00:35]} 6. O-O {[%emt 0:00:18]} e6 {[%emt 0:03:02]} 7. Nbc3 {[%emt 0:02:13]} Qh5 {[%emt 0:08:05]} 8. Bf4 {[%emt 0:00:50]} c6 {[%emt 0:10:39]} 9. Qd3 {[%emt 0:02:28]} Nbd7 {[%emt 0:02:24]} 10. Qg3 {[%emt 0:02:45]} Qg6 {[%emt 0:01:53]} 11. Qxg6 {[%emt 0:01:03]} hxg6 {[%emt 0:00:13]} 12. Rfe1 {[%emt 0:01:09]} Nb6 {[%emt 0:07:11]} 13. Ng3 {[%emt 0:09:48]} Rh4 {[%emt 0:08:04]} 14. Be5 {[%emt 0:01:09]} O-O-O {[%emt 0:04:35]} 15. Nge4 {[%emt 0:01:52]} Nxe4 {[%emt 0:12:15]} 16. Nxe4 {[%emt 0:00:15]} Nc4 {[%emt 0:01:51]} 17. Bg3 {[%emt 0:01:22]} Rh5 {[%emt 0:00:31]} 18. b3 {[%emt 0:03:51]} Na3 {[%emt 0:00:49]} 19. Rac1 {[%emt 0:01:25]} Rxd4 {[%emt 0:00:43]} 20. c3 {[%emt 0:00:39]} Rd7 {[%emt 0:08:55]} 21. Red1 {[%emt 0:01:25]} Rhd5 {[%emt 0:04:09]} 22. Rxd5 {[%emt 0:01:35]} Rxd5 {[%emt 0:01:24]} 23. c4 {[%emt 0:00:12]} Rd7 {[%emt 0:04:19]} 24. Kf1 {[%emt 0:00:44]} Be7 {[%emt 0:01:45]} 25. Ke2 {[%emt 0:06:03]} f5 {[%emt 0:04:27]} 26. Nd2 {[%emt 0:03:07]} Bf6 {[%emt 0:00:34]} 27. Nf3 {[%emt 0:01:31]} g5 {[%emt 0:03:09]} 28. Be5 {[%emt 0:01:28]} g4 {[%emt 0:00:09]} 29. Bxf6 {[%emt 0:01:09]} gxf3+ {[%emt 0:00:07]} 30. gxf3 {[%emt 0:01:03]} gxf6 {[%emt 0:00:06]} 31. h4 {[%emt 0:01:10]} Rh7 {[%emt 0:01:55]} 32. Rg1 {[%emt 0:01:13]} Nc2 {[%emt 0:00:31]} 33. c5 {[%emt 0:00:17]} b6 {[%emt 0:02:59]} 34. cxb6 {[%emt 0:01:12]} axb6 {[%emt 0:00:09]} 35. Rg6 {[%emt 0:00:49]} Rxh4 {[%emt 0:00:36]} 36. Rxf6 {[%emt 0:00:08]} Kd7 {[%emt 0:01:15]} 37. Rf7+ {[%emt 0:00:29]} Kd6 {[%emt 0:02:03]} 38. Rb7 {[%emt 0:00:10]} Rb4 {[%emt 0:00:51]} 39. Kd3 {[%emt 0:00:34]} Ne1+ {[%emt 0:01:02]} 40. Kc3 {[%emt 0:00:00]} Rf4 {[%emt 0:00:00]} 41. Rxb6 Rxf3+ {[%emt 0:02:42]} 42. Kd2 {[%emt 0:01:19]} Nd3 {[%emt 0:01:15]} 43. Ke2 {[%emt 0:00:24]} e5 {[%emt 0:00:00]} 44. Kxf3 {[%emt 0:00:17]} e4+ {[%emt 0:00:00]} 45. Ke3 {[%emt 0:00:48]} Kd5 {[%emt 0:03:00]} 46. a4 {[%emt 0:06:04]} f4+ {[%emt 0:00:17]} 47. Ke2 {[%emt 0:00:22]} Kc5 {[%emt 0:00:45]} 48. Rb8 {[%emt 0:05:07]} Kd4 {[%emt 0:03:59]} 49. Rd8+ Kc3 {[%emt 0:00:22]} 50. Rxd3+ {[%emt 0:02:19]} exd3+ {[%emt 0:00:08]} 51. Kd1 {[%emt 0:00:09]} Kb4 {[%emt 0:01:26]} 52. Kd2 {[%emt 0:06:36]} c5 {[%emt 0:02:58]} 53. a5 {[%emt 0:00:06]} Kxa5 {[%emt 0:13:28]} 54. Kxd3 {[%emt 0:00:13]} Kb4 {[%emt 0:08:08]} 55. Kc2 {[%emt 0:00:07]} c4 {[%emt 0:02:47]} 56. bxc4 {[%emt 0:00:17]} Kxc4 {[%emt 0:00:36]} 57. f3 {[%emt 0:00:07]} Kd4 {[%emt 0:00:49]} 58. Kd2 {[%emt 0:00:09]} Kc4 {[%emt 0:00:20]} 59. Kc1 1/2-1/2

[Event "IIFL Wealth 4th Mumbai Open"]
[Site "Mumbai"]
[Date "2019.01.05"]
[Round "7"]
[White "Jain Adi"]
[Black "Dave Sneh"]
[Result "1/2-1/2"]
[ECO "E16"]
[WhiteElo "1545"]
[BlackElo "1873"]
[Annotator "NA"]
[PlyCount "158"]
[EventDate "2018.12.30"]
[EventType "swiss"]
[EventCountry "IND"]
[SourceTitle "playchess.com"]
[Source "ChessBase"]
[SourceQuality "1"]
[TimeControl "40/5400+30:1800+30"]

1. Nf3 {[%emt 0:00:00]} Nf6 {[%emt 0:00:00]} 2. c4 {[%emt 0:00:00]} e6 {[%emt 0:00:00]} 3. g3 {[%emt 0:00:05]} b6 {[%emt 0:00:00]} 4. Bg2 {[%emt 0:00:14]} Bb7 {[%emt 0:00:00]} 5. d4 {[%emt 0:00:17]} Bb4+ {[%emt 0:02:39]} 6. Bd2 {[%emt 0:00:20]} Be7 {[%emt 0:00:17]} 7. O-O {[%emt 0:00:32]} O-O {[%emt 0:02:44]} 8. Nc3 {[%emt 0:00:35]} d6 {[%emt 0:00:06]} 9. Qc2 {[%emt 0:03:49]} Nbd7 {[%emt 0:00:07]} 10. Rac1 {[%emt 0:05:52]} c5 {[%emt 0:03:36]} 11. Rfd1 {[%emt 0:08:11]} a6 {[%emt 0:06:06]} 12. b3 {[%emt 0:01:38]} Bxf3 {[%emt 0:02:00]} 13. Bxf3 {[%emt 0:02:54]} cxd4 {[%emt 0:00:03]} 14. Ne4 {[%emt 0:01:34]} Rc8 {[%emt 0:06:29]} 15. Bb4 {[%emt 0:16:23]} d5 {[%emt 0:00:29]} 16. Nxf6+ {[%emt 0:04:18]} Nxf6 {[%emt 0:00:08]} 17. Bxe7 {[%emt 0:05:25]} Qxe7 {[%emt 0:00:01]} 18. Qb2 {[%emt 0:07:49]} e5 {[%emt 0:09:48]} 19. Bxd5 {[%emt 0:07:53]} b5 {[%emt 0:35:12]} 20. b4 {[%emt 0:14:09]} Nxd5 {[%emt 0:12:54]} 21. cxd5 {[%emt 0:00:15]} Rc4 {[%emt 0:00:58]} 22. Rxc4 {[%emt 0:10:29]} bxc4 {[%emt 0:00:02]} 23. e3 {[%emt 0:04:05]} c3 {[%emt 0:10:27]} 24. Qb3 {[%emt 0:02:35]} Rc8 {[%emt 0:00:02]} 25. a3 {[%emt 0:01:51]} h5 {[%emt 0:02:50]} 26. Qc2 {[%emt 0:00:50]} Qf6 {[%emt 0:02:03]} 27. exd4 {[%emt 0:00:42]} exd4 {[%emt 0:00:01]} 28. Qe4 {[%emt 0:00:37]} g6 {[%emt 0:02:29]} 29. h4 {[%emt 0:00:22]} Kf8 {[%emt 0:00:55]} 30. d6 {[%emt 0:00:29]} Qxd6 {[%emt 0:01:14]} 31. Rxd4 {[%emt 0:00:06]} Qf6 {[%emt 0:01:13]} 32. Rd1 {[%emt 0:00:26]} c2 {[%emt 0:00:20]} 33. Rc1 {[%emt 0:00:16]} Qc3 {[%emt 0:00:36]} 34. Qe3 {[%emt 0:00:45]} Qb2 {[%emt 0:00:33]} 35. Qh6+ {[%emt 0:00:48]} Kg8 {[%emt 0:00:09]} 36. Qd2 {[%emt 0:00:35]} Qb3 {[%emt 0:00:41]} 37. Qe3 {[%emt 0:00:38]} Qb2 {[%emt 0:00:29]} 38. Qd2 {[%emt 0:00:15]} Kg7 {[%emt 0:00:03]} 39. a4 {[%emt 0:00:17]} Rc4 {[%emt 0:00:39]} 40. Kh2 {[%emt 0:00:00]} Rxb4 {[%emt 0:00:00]} 41. Rxc2 {[%emt 0:01:40]} Qd4 {[%emt 0:04:02]} 42. Qxd4+ {[%emt 0:01:25]} Rxd4 {[%emt 0:00:01]} 43. a5 {[%emt 0:00:45]} Rd5 {[%emt 0:00:44]} 44. Ra2 {[%emt 0:01:48]} Kf6 {[%emt 0:01:34]} 45. Kg2 {[%emt 0:02:13]} Ke5 {[%emt 0:00:15]} 46. Kf3 {[%emt 0:00:21]} f6 {[%emt 0:03:18]} 47. Ke3 {[%emt 0:00:32]} g5 {[%emt 0:01:54]} 48. hxg5 {[%emt 0:00:53]} fxg5 {[%emt 0:00:01]} 49. f4+ {[%emt 0:05:03]} Kf5 {[%emt 0:00:02]} 50. fxg5 {[%emt 0:00:41]} Kg4 {[%emt 0:00:01]} 51. Kf2 {[%emt 0:02:07]} Kxg5 {[%emt 0:01:42]} 52. Ra4 {[%emt 0:00:15]} Kf5 {[%emt 0:01:39]} 53. Ke3 {[%emt 0:01:34]} Ke6 {[%emt 0:01:27]} 54. Re4+ {[%emt 0:05:10]} Kf6 {[%emt 0:02:03]} 55. Rf4+ {[%emt 0:01:18]} Kg5 {[%emt 0:00:05]} 56. Ra4 {[%emt 0:00:10]} Rf5 {[%emt 0:00:10]} 57. Ke2 {[%emt 0:01:03]} Kf6 {[%emt 0:02:25]} 58. Rf4 {[%emt 0:03:32]} Rxf4 {[%emt 0:00:55]} 59. gxf4 {[%emt 0:00:04]} Kf5 {[%emt 0:00:18]} 60. Kf3 {[%emt 0:00:12]} h4 {[%emt 0:00:04]} 61. Kg2 {[%emt 0:00:36]} Kxf4 {[%emt 0:07:45]} 62. Kh3 {[%emt 0:00:11]} Kg5 {[%emt 0:03:58]} 63. Kh2 {[%emt 0:00:06]} Kh5 {[%emt 0:02:16]} 64. Kh3 {[%emt 0:00:05]} Kg5 {[%emt 0:00:04]} 65. Kh2 {[%emt 0:00:04]} Kg4 {[%emt 0:02:36]} 66. Kg2 {[%emt 0:00:01]} Kf4 {[%emt 0:00:25]} 67. Kh3 {[%emt 0:00:02]} Ke3 {[%emt 0:00:27]} 68. Kxh4 {[%emt 0:00:04]} Kd4 {[%emt 0:00:39]} 69. Kg3 {[%emt 0:00:03]} Kc3 {[%emt 0:01:11]} 70. Kf3 {[%emt 0:00:17]} Kb4 {[%emt 0:00:07]} 71. Ke2 {[%emt 0:00:03]} Kxa5 {[%emt 0:00:16]} 72. Kd2 {[%emt 0:00:04]} Kb4 {[%emt 0:00:10]} 73. Kc2 {[%emt 0:00:07]} Ka3 {[%emt 0:00:03]} 74. Kb1 {[%emt 0:00:04]} Kb3 {[%emt 0:00:08]} 75. Ka1 {[%emt 0:00:03]} a5 {[%emt 0:00:06]} 76. Kb1 {[%emt 0:00:03]} a4 {[%emt 0:00:04]} 77. Ka1 {[%emt 0:00:04]} a3 {[%emt 0:00:05]} 78. Kb1 {[%emt 0:00:03]} a2+ {[%emt 0:00:06]} 79. Ka1 {[%emt 0:00:02]} Ka3 {[%emt 0:00:08]} 1/2-1/2

[Event "IIFL Wealth 4th Mumbai Open"]
[Site "Mumbai"]
[Date "2019.01.05"]
[Round "7"]
[White "Awade Pradeep"]
[Black "Sadbhav Rautela"]
[Result "1-0"]
[ECO "B30"]
[WhiteElo "1538"]
[BlackElo "1800"]
[Annotator "NA"]
[PlyCount "49"]
[EventDate "2018.12.30"]
[EventType "swiss"]
[EventCountry "IND"]
[SourceTitle "playchess.com"]
[Source "ChessBase"]
[SourceQuality "1"]
[TimeControl "40/5400+30:1800+30"]

1. e4 {[%emt 0:00:00]} c5 {[%emt 0:00:00]} 2. Nf3 {[%emt 0:00:00]} Nc6 {[%emt 0:00:00]} 3. g3 {[%emt 0:00:12]} d6 {[%emt 0:01:20]} 4. h3 {[%emt 0:00:52]} Nf6 {[%emt 0:00:16]} 5. d3 {[%emt 0:00:02]} Bd7 {[%emt 0:00:40]} 6. Bg2 {[%emt 0:00:35]} g6 {[%emt 0:02:16]} 7. O-O {[%emt 0:00:26]} Bg7 {[%emt 0:00:03]} 8. Nbd2 {[%emt 0:02:47]} O-O {[%emt 0:00:37]} 9. Nh4 {[%emt 0:03:41]} Qc7 {[%emt 0:05:36]} 10. Re1 {[%emt 0:05:07]} e5 {[%emt 0:12:48]} 11. Nf1 {[%emt 0:08:39]} b5 {[%emt 0:06:38]} 12. c4 {[%emt 0:01:29]} Nd4 {[%emt 0:07:52]} 13. Ne3 {[%emt 0:01:50]} Rab8 {[%emt 0:10:29]} 14. Nf3 {[%emt 0:07:54]} bxc4 {[%emt 0:09:49]} 15. dxc4 {[%emt 0:00:13]} Qa5 {[%emt 0:03:25]} 16. Nxd4 {[%emt 0:08:04]} cxd4 {[%emt 0:04:28]} 17. Nd5 {[%emt 0:01:22]} Nxd5 {[%emt 0:06:48]} 18. exd5 {[%emt 0:01:33]} Rfc8 {[%emt 0:05:36]} 19. b3 {[%emt 0:02:49]} Qc5 {[%emt 0:04:45]} 20. g4 {[%emt 0:09:52]} a5 {[%emt 0:03:46]} 21. Qd3 {[%emt 0:02:32]} f5 {[%emt 0:09:04]} 22. f3 {[%emt 0:02:03]} Rf8 {[%emt 0:01:47]} 23. Bd2 {[%emt 0:03:47]} f4 {[%emt 0:02:55]} 24. Kh1 {[%emt 0:07:07]} g5 {[%emt 0:00:19]} 25. Bf1 {[%emt 0:01:03]} 1-0